Cogmind - Beta 9.2 @@@ ROGUE MODE // 2019.11.19 @ 14:06:50 Player: Cassie Rose Result: Destroyed by Y-45 Defender with Heavy Assault Rifle Performance ------------- Evolutions (0) 0 Regions Visited (2) 400 Robots Destroyed (31) 155 Value Destroyed (654) 654 Prototype IDs (0) 0 Alien Tech Used (0) 0 Bonus (0) 0 TOTAL SCORE: 1209 Bonus ------- None Cogmind --------- Core Integrity 0/250 Matter 265/300 Energy 68/100 System Corruption 0% Temperature Cool (9) Movement Rolling (120) Ox2 Location -10/Mines Parts ------- > --- POWER (1) -------- (None) > --- PROPULSION (2) --- Compact Wheel > --- UTILITY (2) ------ High-capacity Storage Unit Hacking Suite > --- WEAPON (2) ------- Assault Rifle Assault Rifle > --- INVENTORY (12) --- Light Treads Sensor Array Transport Network Coupler Light Armor Plating Grenade Launcher Datajack Datajack Peak State ------------ > --- POWER ------------ Light Ion Engine > --- PROPULSION ------- Compact Wheel Compact Wheel > --- UTILITY ---------- High-capacity Storage Unit Hacking Suite > --- WEAPON ----------- Assault Rifle Assault Rifle > --- INVENTORY -------- Light Treads Transport Network Coupler Assault Rifle Assault Rifle Grenade Launcher Datajack Datajack [Rating: 9] Favorites ----------- Power Light Ion Engine Engine Light Ion Engine Propulsion Compact Wheel Wheel Compact Wheel Utility High-capacity Storage Unit Device Improved Terrain Scanner Storage High-capacity Storage Unit Hackware Hacking Suite Weapon Assault Rifle Energy Gun EM Pulse Gun Ballistic Gun Assault Rifle Launcher Grenade Launcher Build | -11 -10 -10 ------- Run | Scr Mat Min Slots Evolved . | . . . Power . | . . . Propulsion . | . . . Utility . | . . . Weapon . | . . . Parts Attached 22 | 8 11 3 Power 4 | 1 2 1 Engine 4 | 1 2 1 Core . | . . . Reactor . | . . . Propulsion 5 | 3 2 . Treads . | . . . Leg . | . . . Wheel 5 | 3 2 . Hover . | . . . Flight . | . . . Utility 5 | 2 3 . Device 1 | 1 . . Storage 3 | 1 2 . Processor . | . . . Hackware 1 | . 1 . Protection . | . . . Artifact . | . . . Weapon 8 | 2 4 2 Energy Gun 1 | 1 . . Energy Cannon . | . . . Ballistic Gun 6 | 1 3 2 Ballistic Cannon . | . . . Launcher 1 | . 1 . Special Weapon . | . . . Impact Weapon . | . . . Slashing Weapon . | . . . Piercing Weapon . | . . . Special Melee Weapon . | . . . Unidentified Prototypes . | . . . Parts Lost 10 | . 5 5 Power 3 | . 1 2 Propulsion 2 | . 1 1 Utility 1 | . 1 . Weapon 4 | . 2 2 Highest Loss Streak 4 | . 1 4 Average Slot Usage (%) 97 | . 97 97 Engine 13 | . 13 12 Wheel 27 | . 27 27 Device 6 | . 9 . Storage 14 | . 14 14 Hackware 6 | . 3 14 Ballistic Gun 26 | . 26 27 Naked Turns . | . . . Heaviest Build 40 | 12 40 39 Greatest Support 32 | 26 32 32 Greatest Overweight (x) 2 | 1 2 1 Average Overweight (x) . | . . 1 Largest Inventory Capacity 12 | 6 12 12 Average Capacity 9 | 5 9 12 Most Carried 10 | 5 9 10 Average Carried 6 | 2 5 8 Final Capacity 12 | 6 12 12 Final Carried 9 | 5 9 7 Class Distribution -------------------- 100% | Mutant Dominant Class ---------------- Mutant | -10/Materials Mutant | -10/Mines Resources | -11 -10 -10 ----------- Run | Scr Mat Min Matter Collected 929 | 292 503 134 Remotely . | . . . Salvage Created 951 | 140 689 122 Parts 61 | 8 35 18 Haulers Intercepted 2 | . 2 . Recyclers Shooed . | . . . Parts Field Recycled . | . . . Retrieved Matter . | . . . Parts Self-Destructed . | . . . Prevented . | . . . Kills | -11 -10 -10 ------- Run | Scr Mat Min Combat Hostiles Destroyed 21 | . 12 9 Guns 18 | . 9 9 AOE 3 | . 3 . Classes Destroyed 8 | 2 5 1 Worker 2 | . 2 . Tunneler 2 | 2 . . Hauler 2 | . 2 . Recycler 1 | 1 . . Operator 2 | . 2 . Watcher 1 | . 1 . Swarmer 9 | . . 9 Grunt 12 | . 12 . Best Kill Streak 5 | 1 5 3 Combat Bots Only 3 | . 3 3 Max Kills in Single Turn 2 | 1 2 1 Gunslinging . | . . . Exploded 1 | . 1 . Melee . | . . . Uniques/NPCs Destroyed . | . . . Combat | -11 -10 -10 -------- Run | Scr Mat Min Damage Taken 1029 | . 646 383 Core 250 | . 182 68 Absorbed by Shields . | . . . Core Remaining (%) 100 | 100 . . Volleys Fired 106 | 11 72 23 Largest 2 | 2 2 2 Hottest 60 | 60 60 40 Shots Fired 203 | 15 143 45 Gun 201 | 15 141 45 Cannon . | . . . Launcher 2 | . 2 . Special . | . . . Kinetic 189 | 4 140 45 Thermal . | . . . Explosive 2 | . 2 . Electromagnetic 12 | 11 1 . Robot Hit Streak 19 | 10 19 11 Robot Miss Streak 3 | 1 3 2 Penetration Max . | . . . Secondary Targets 1 | . . 1 Max Gunslinging Chain 1 | . . 1 Shots Hit Robots 137 | 12 99 26 Core Hits 50 | 4 36 10 Critical Hits 3 | . 3 . Critical Kills 1 | . 1 . Critical Parts Destroyed 2 | . 2 . Melee Attacks . | . . . Impact . | . . . Slashing . | . . . Piercing . | . . . Sneak Attacks . | . . . Combat Hostiles . | . . . Follow-up Attacks . | . . . Damage Inflicted 1894 | 175 1392 327 Guns 1661 | 175 1159 327 Cannons . | . . . Explosions 228 | . 228 . Melee . | . . . Ramming 5 | . 5 . Kinetic 1497 | 26 1144 327 Thermal 63 | . 63 . Explosive 60 | . 60 . Electromagnetic 269 | 149 120 . Impact . | . . . Slashing . | . . . Piercing . | . . . Highest Corruption . | . . . Average Corruption . | . . . Corruption Purged . | . . . Overload Shots . | . . . Overflow Damage . | . . . Projectiles . | . . . Explosions . | . . . Melee . | . . . Knockbacks . | . . . Impact . | . . . Kinetic . | . . . Secondary . | . . . Self-Inflicted Damage 45 | . 45 . Shots 1 | . 1 . Rammed 1 | . 1 . Targets Rammed 1 | . 1 . Kicked . | . . . Crushed . | . . . Highest Temperature 18 | . 18 2 Average Temperature 4 | . 5 2 Received Heat Transfer 378 | . 333 45 Siege Activations . | . . . Robots Corrupted . | . . . Combat Hostiles . | . . . Parts Fried 1 | 1 . . Impact Corruptions . | . . . Robots Melted . | . . . Combat Hostiles . | . . . Parts Melted . | . . . Heat Transferred 50 | . 50 . Parts Sabotaged . | . . . Parts Stolen . | . . . Parts Stripped . | . . . Power Chain Reactions 1 | . 1 . Missiles Intercepted . | . . . Alert | -11 -10 -10 ------- Run | Scr Mat Min Peak Influence 255 | 15 243 255 Average Influence 131 | 6 132 159 Maximum Alert Level 1 | . 1 1 Low Security (%) 73 | 100 80 51 Level 1 26 | . 19 48 Level 2 . | . . . Level 3 . | . . . Level 4 . | . . . Level 5 . | . . . High Security . | . . . Max Security . | . . . Squads Dispatched 2 | . 2 . Investigation . | . . . Extermination . | . . . Reinforcement 2 | . 2 . Assault . | . . . Garrison . | . . . Intercept . | . . . Construction Impeded . | . . . Haulers Reinforced . | . . . Stealth | -11 -10 -10 --------- Run | Scr Mat Min Distress Signals 1 | . 1 . Communications Jammed . | . . . Distress Signals . | . . . Times Spotted 39 | . 26 13 Peak Tracking Total 4 | . 4 3 Tactical Retreats 6 | . 5 1 Traps | -11 -10 -10 ------- Run | Scr Mat Min Traps Triggered . | . . . Indirectly . | . . . Trap Hack Attempts . | . . . Triggered . | . . . Disarmed . | . . . Reprogrammed . | . . . Reused . | . . . Traps Extracted . | . . . Installed . | . . . Triggered . | . . . Machines | -11 -10 -10 ---------- Run | Scr Mat Min Machines Disabled 3 | . 3 . Max in Single Turn 2 | . 2 . Machines Sabotaged . | . . . Garrisons Compromised . | . . . Overloaded Fab Kills . | . . . Fab Network Shutdowns . | . . . Hacking | -11 -10 -10 --------- Run | Scr Mat Min Machines Accessed 6 | . 6 . Terminals 6 | . 6 . Fabricators . | . . . Repair Stations . | . . . Recycling Units . | . . . Scanalyzers . | . . . Garrison Access . | . . . Total Hacks 14 | . 14 . Successful 8 | . 8 . Failed 6 | . 6 . Catastrophic 1 | . 1 . Database Lockouts . | . . . Manual 13 | . 13 . Terminals 14 | . 14 . Fabricators . | . . . Repair Stations . | . . . Recycling Units . | . . . Scanalyzers . | . . . Garrison Access . | . . . Terminal Hacks 2 | . 2 . Branch Access Points 1 | . 1 . Registered Components 1 | . 1 . Fabricator Hacks . | . . . Repair Station Hacks . | . . . Recycling Unit Hacks . | . . . Scanalyzer . | . . . Garrison Access Hacks . | . . . Unauthorized Hacks 16 | . 16 . Terminals 6 | . 6 . Assimilate 1 | . 1 . Botnet 5 | . 5 . Fabricators . | . . . Repair Stations . | . . . Recycling Units . | . . . Scanalyzers . | . . . Garrison Access . | . . . Data Cores Recovered . | . . . Used . | . . . Hacking Detections 5 | . 5 . Full Trace Events . | . . . Feedback Events . | . . . Feedback Blocked . | . . . Robot Schematics Acquired . | . . . Robots Built . | . . . Matter . | . . . Time . | . . . Total Robot Build Rating . | . . . Part Schematics Acquired . | . . . Parts Built . | . . . Matter . | . . . Time . | . . . Total Part Build Rating . | . . . Parts Repaired . | . . . Time . | . . . Parts Recycled . | . . . Recycled Matter . | . . . Retrieved Matter . | . . . Retrieved Components . | . . . Parts Scanalyzed . | . . . Part Schematics Acquired . | . . . Parts Damaged . | . . . Bothacking | -11 -10 -10 ------------ Run | Scr Mat Min Used RIF Installer . | . . . Robots Hacked . | . . . Non-combat . | . . . Combat . | . . . Robot Hacks Applied . | . . . Relay Couplers Released . | . . . Robots Rewired . | . . . Allies Hacked . | . . . Hacks Repelled . | . . . Allies | -11 -10 -10 -------- Run | Scr Mat Min Total Allies . | . . . Largest Group . | . . . Highest-Rated Group . | . . . Highest-Rated Ally . | . . . Total Orders . | . . . Ally Attacks . | . . . Total Damage . | . . . Kills . | . . . Allies Corrupted . | . . . Allies Melted . | . . . Intel | -11 -10 -10 ------- Run | Scr Mat Min Robot Analysis Total . | . . . Derelict Logs Recovered . | . . . Drone Launches . | . . . Drone Recoveries . | . . . Exploration | -11 -10 -10 ------------- Run | Scr Mat Min Turns Passed 1420 | 97 924 399 Spaces Moved 961 | 60 620 281 Core 5 | 5 . . Treads . | . . . Legs . | . . . Wheels 956 | 55 620 281 Hover . | . . . Flight . | . . . Fastest Speed 50 | 50 80 110 Average Speed 100 | 85 97 110 Slowest Speed 110 | 100 110 110 Overloaded Moves . | . . . Propulsion Burnouts . | . . . Robots Hopped . | . . . Cave-ins Triggered . | . . . Exploration Rate (%) 47 | 4 94 45 Regions Visited 2 Branch Regions 1 Pre-discovered Areas . | . . . Known Exits Taken 1 | . 1 . Unknown Exits Taken 1 | 1 . . Scrap Searched 2 | . . 2 Spaces Dug . | . . . Terrain Destroyed 12 | . 12 . Melee . | . . . Projectile . | . . . AOE 12 | . 12 . Actions | -11 -10 -10 --------- Run | Scr Mat Min Total 1215 | 90 797 328 Wait 93 | . 73 20 Move 959 | 59 619 281 Hop . | . . . Pick Up 28 | 12 15 1 Fast Attach . | . . . Attach 15 | 7 5 3 Detach . | . . . Swap 7 | 1 6 . Drop 6 | . 6 . Fire 106 | 11 72 23 Melee . | . . . Ram 1 | . 1 . Kick . | . . . Crush . | . . . Escape Stasis . | . . . Rewire . | . . . Trap . | . . . Miscellaneous . | . . . Route ------- -11/Scrapyard -10/Materials (discovered 4 exits: [*Mat x2] / *Min x2) -10/Mines (discovered 1 exit: [*Mat]) History --------- Turn | Location | Event 48 | -11/Scrapyard | Discovered new exit (range 15) 98 | -11/Scrapyard | Entered Materials 121 | -10/Materials | Discovered new exit (range 11) 301 | -10/Materials | Build established: Mutant 351 | -10/Materials | Core integrity fell below 50% 367 | -10/Materials | Discovered new exit (range 16) 410 | -10/Materials | Discovered new exit (range 14) 660 | -10/Materials | Identified exit to Mines 747 | -10/Materials | Discovered new exit (range 16) 1022 | -10/Materials | Entered Mines 1079 | -10/Mines | Discovered new exit (range 9) 1226 | -10/Mines | Core integrity fell below 20% 1421 | -10/Mines | Destroyed by Y-45 Defender with Heavy Assault Rifle Last Messages --------------- 01227_ S-10 Pest destroyed. 01228_ Acquired 16 matter. 01230_ Acquired 15 matter. 01289_ Searching scrap... 01289_ Found 49 Matter. 01289_ Found ECM Suite. 01289_ Found Lrg. Storage Unit. 01289_ Found Tractor Beam. 01289_ Found Lgt. Assault Rifle. 01290_ Acquired 4 matter. 01382_ K-01 Serf collects debris. 01389_ S-10 Pest destroyed. 01392_ K-01 Serf collects debris. 01398_ S-10 Pest destroyed. 01398_ Switching to secondary target: Y-45 Defender. 01403_ Acquired 10 matter. 01412_ Com. Wheel destroyed. 01415_ Assault Rifle destroyed. 01418_ Lgt. Ion Engine destroyed. 01418_ Assault Rifle destroyed. Map ----- +----------------------------------------------------+ | ???????# #????# #????????????????????????????? | | ???????# ##????# #???????????????????????????? | | ??????## ##???? #???????????????????????????? | | ?????## #????? #???????????????????????????? | | ????## #?????? #???????????????????????????? | | ????# ##?????? #???????????????????????????? | | ????# ##???????? ##???????????????????????????? | | ????## ##??????????#????????????????????????????? | | ?????# ##????????????????????????????????????????? | | ?????#=#?????????????????????????????????????????? | | ######*#?????????????????????????????????????????? | | == [#?????????????????????????????????????????? | | ###### #?????###?????????????????????????????????? | | ?????# ####### ##???????????????????????????????? | | ?????# ##?????#????????????????????????? | | ?????## ##### ##???? ????????????????????????? | | ??????# #???# ###?# #???????????????????????? | | ??????# #????# !%!### #???????????????????????? | | ??????# #????## ![ ## #???????????????????????? | | ????### #?????## ## #???????????????????????? | | ????# #?????## #???????????????????????? | | ????# ###??#### ### #???????????????????????? | | ???## #?#### ###?# #???????????????????????? | | #### ### ##???# #???????????????????????? | | ####????# ##### #?????????????????? | | ##???????#[@ #?????????????????? | | ### #????????#Y#### ##?????????????????? | | #### ##?########t#### #??????????????????? | | ### ######??# %=[ ### #????????????? | | ## ##???????# #????????????? | | ###????????# ####### ##????????????? | | ##?????????# #?????? #?????????????? | | ########### #??????# #?????????????? | | """ #??????? #????????????? | | """ #??????? #???????????? | | """ ############???????? ??????????? | | #??????????????????? ??????????? | | ## #??????????????????? ######???????????? | | ### #???????????????????? #????????????????? | | ##?# #???????????????????? #????????????????? | | ???# #????????????????????? #????????????????? | | ??## #????????????????????? ????????????????? | | ??# ##??????????????????????? ????????????????? | | ?# ##?????????????????????????????????????????? | | ?# #??????????????????????????????????????????? | | ### ##??????????????????????????????????????????? | | #####????????????????????????????????????????????? | | #???????????????????????????????????????????????? | | #??????????????????????????????????????????????? | | #??????????????????????????????????????????????? | +----------------------------------------------------+ Best States ------------- Heat Dissipation 25 Energy Generation 10 Energy Capacity 125 Matter Stores 300 Matter Capacity 300 Sight Range 16 Terrain Scan Range 16 Terrain Scan Density 10 Evasion (%) 44 Offensive Hacking 10 Item Schematics ----------------- None Robot Schematics ------------------ None Fabricated ------------ Nothing Alien Tech Used ----------------- None Achievements -------------- None Challenges ------------ None Game ------ Seed MasterProcessingChainsword Manual? 0 Play Time 00:30:10 Cumulative 24.1 hours Start 2019.11.19 @ 10:59:07 End 2019.11.19 @ 14:06:50 Sessions 1 Manual Loads 0 Difficulty Rogue Special Mode None Game No. 33 Rogue 33 Adventurer 0 Explorer 0 Win Type - Total 0 Types 0/0/0/0/0/0/0 Lore% 21 Gallery% 16 Achievement% 19 Wizard Run 0 Options --------- ASCII 0 Keyboard 0 Movement Arrows Keybinds 0 Fullscreen 1 Font 18/X11 Map View 76x50 Tactical HUD 1 Map Filters NONE Filters LOW_CONTRAST(13,24,33) Steam 1 RUN: 14c29393-5a89-4b28-bee3-46c9117094c9